[Event "LEM Sachsen-Anhalt Open 2024"]
[Site "Merseburg"]
[Date "2024.02.10"]
[Round "5.1"]
[White "Binnewies, Markus"]
[Black "Carnot, Luca"]
[Result "1/2-1/2"]
[ECO "D00"]
[WhiteElo "1772"]
[BlackElo "2063"]
[Annotator "NA RC"]
[PlyCount "39"]
[EventDate "2024.02.01"]
[EventType "swiss"]
[EventCountry "GER"]
[SourceTitle "playchess.com"]
[Source "ChessBase"]
[SourceQuality "1"]
[TimeControl "40/5400+30:1800+30"]

1. f4 {[%emt 0:01:05]} d5 {[%emt 0:00:36]} 2. Nf3 {[%emt 0:00:21]} Nf6 {[%emt 0:00:49]} 3. d4 {[%emt 0:00:57]} Bf5 {[%emt 0:01:01]} 4. e3 {[%emt 0:00:40]} e6 {[%emt 0:00:16]} 5. Be2 {[%emt 0:01:01]} Bd6 {[%emt 0:02:34]} 6. O-O {[%emt 0:00:19]} O-O {[%emt 0:04:04]} 7. Nbd2 {[%emt 0:00:16]} c5 {[%emt 0:00:44]} 8. c3 {[%emt 0:00:28]} Nc6 {[%emt 0:01:43]} 9. Ne5 {[%emt 0:00:23]} Ne4 {[%emt 0:00:53]} 10. Ndf3 {[%emt 0:05:46]} (10. Bf3 $11) 10... h6 {[%emt 0:07:03]} 11. Nxc6 {[%emt 0:08:29]} (11. Nd2 $15 {feels stronger.}) 11... bxc6 {[%emt 0:00:06]} 12. Bd3 {[%emt 0:00:30]} Qc7 {[%emt 0:06:40]} 13. Bc2 $17 {[%emt 0:11:16]} (13. c4 $15) 13... cxd4 {[%emt 0:02:54]} 14. exd4 {[%emt 0:04:00]} Bxf4 {[%emt 0:01:10]} 15. Bxe4 {[%emt 0:02:03]} Bxe4 {[%emt 0:01:44]} 16. Bxf4 {[%emt 0:01:49]} Qxf4 {[%emt 0:00:07]} 17. Ne5 {[%emt 0:00:15]} Qg5 {[%emt 0:03:51]} 18. Rf2 {[%emt 0:00:36]} a5 {[%emt 0:26:37]} 19. Qf1 {[%emt 0:00:52]} Bf5 {[%emt 0:02:00]} 20. Nxc6 {[%emt 0:01:37]} 1/2-1/2

[Event "LEM Sachsen-Anhalt Open 2024"]
[Site "Merseburg"]
[Date "2024.02.10"]
[Round "5.2"]
[White "Geldner, Gerrit"]
[Black "Martemyanov, Mikhail"]
[Result "1-0"]
[ECO "A21"]
[WhiteElo "1889"]
[BlackElo "1257"]
[Annotator "NA RC"]
[PlyCount "71"]
[EventDate "2024.02.01"]
[EventType "swiss"]
[EventCountry "GER"]
[SourceTitle "playchess.com"]
[Source "ChessBase"]
[SourceQuality "1"]
[TimeControl "40/5400+30:1800+30"]

1. c4 {[%emt 0:00:07]} e5 {[%emt 0:00:07]} 2. Nc3 {[%emt 0:00:12]} Bb4 {[%emt 0:00:05]} 3. e4 {[%emt 0:01:06]} Nc6 {[%emt 0:05:07]} 4. Nge2 {[%emt 0:01:41]} a5 {[%emt 0:02:23]} 5. g3 {[%emt 0:01:58]} d6 {[%emt 0:01:35]} 6. Bg2 {[%emt 0:00:56]} Nge7 {[%emt 0:03:35]} 7. d3 {[%emt 0:03:14]} O-O {[%emt 0:07:36]} 8. O-O {[%emt 0:01:43]} Be6 {[%emt 0:04:11]} 9. Nd5 $11 {[%emt 0:03:58]} Bc5 {[%emt 0:05:51]} 10. Be3 {[%emt 0:02:29]} Ba7 {[%emt 0:05:57]} 11. Qd2 {[%emt 0:04:17]} Qd7 {[%emt 0:08:27]} 12. f4 {[%emt 0:05:17]} f5 {[%emt 0:03:56]} 13. b3 {[%emt 0:01:49]} Bxe3+ {[%emt 0:07:48]} 14. Qxe3 {[%emt 0:01:32]} Rad8 {[%emt 0:00:28]} 15. Rad1 {[%emt 0:02:59]} Kh8 {[%emt 0:02:15]} 16. d4 {[%emt 0:11:57]} fxe4 {[%emt 0:10:29]} 17. dxe5 {[%emt 0:02:15]} dxe5 {[%emt 0:00:39]} 18. Bxe4 {[%emt 0:03:54]} exf4 {[%emt 0:07:08]} 19. Nexf4 {[%emt 0:07:36]} Bg8 {[%emt 0:00:20]} 20. Qc3 {[%emt 0:02:25]} Qg4 {[%emt 0:04:38]} 21. Bf3 {[%emt 0:10:55]} Qc8 {[%emt 0:04:29]} 22. Nh5 {[%emt 0:05:33]} Rf7 {[%emt 0:02:28]} 23. Rde1 {[%emt 0:04:06]} Qd7 {[%emt 0:03:58]} 24. Nhf4 {[%emt 0:10:57]} Rff8 {[%emt 0:02:11]} 25. Nxe7 {[%emt 0:01:46]} Nxe7 {[%emt 0:00:08]} 26. Qxa5 {[%emt 0:00:31]} Nc6 {[%emt 0:00:44]} 27. Qh5 {[%emt 0:00:44]} Bf7 {[%emt 0:01:02]} 28. Qh4 {[%emt 0:00:35]} Qd4+ {[%emt 0:01:20]} 29. Kh1 {[%emt 0:00:38]} Rde8 {[%emt 0:01:58]} 30. Bxc6 {[%emt 0:00:49]} Rxe1 {[%emt 0:00:43]} 31. Rxe1 {[%emt 0:04:32]} Qf2 {[%emt 0:00:21]} 32. Qe7 {[%emt 0:01:23]} Ra8 {[%emt 0:03:56]} 33. Bxb7 {[%emt 0:01:29]} Rxa2 {[%emt 0:00:24]} 34. Bg2 {[%emt 0:00:47]} g5 {[%emt 0:00:33]} 35. Qf8+ {[%emt 0:00:19]} Bg8 {[%emt 0:00:08]} 36. Qf6# {[%emt 0:00:06]} 1-0

[Event "LEM Sachsen-Anhalt Open 2024"]
[Site "Merseburg"]
[Date "2024.02.10"]
[Round "5.3"]
[White "Moser, Axel"]
[Black "Golitsyn, Yuri"]
[Result "1-0"]
[ECO "D15"]
[WhiteElo "2094"]
[BlackElo "1781"]
[Annotator "NA RC"]
[PlyCount "89"]
[EventDate "2024.02.01"]
[EventType "swiss"]
[EventCountry "GER"]
[SourceTitle "playchess.com"]
[Source "ChessBase"]
[SourceQuality "1"]
[TimeControl "40/5400+30:1800+30"]

1. d4 {[%emt 0:00:02]} d5 {[%emt 0:00:04]} 2. c4 {[%emt 0:00:12]} c6 {[%emt 0:00:06]} 3. Nf3 {[%emt 0:00:05]} Nf6 {[%emt 0:00:08]} 4. Nc3 {[%emt 0:00:05]} a6 {[%emt 0:00:05]} 5. Qc2 {[%emt 0:04:21]} dxc4 {[%emt 0:02:11]} 6. e4 {[%emt 0:00:13]} e6 {[%emt 0:00:27]} 7. Bxc4 {[%emt 0:01:00]} Nbd7 {[%emt 0:00:19]} 8. O-O {[%emt 0:00:20]} b5 {[%emt 0:00:35]} 9. Bd3 {[%emt 0:05:21]} Bb7 {[%emt 0:03:12]} 10. Rd1 {[%emt 0:02:51]} h6 {[%emt 0:04:22]} (10... c5 $11 {keeps the balance.}) 11. e5 {[%emt 0:06:18]} Nd5 {[%emt 0:01:23]} 12. Nxd5 {[%emt 0:00:06]} cxd5 {[%emt 0:00:39]} 13. Qe2 {[%emt 0:00:33]} Be7 {[%emt 0:06:28]} 14. a4 {[%emt 0:03:22]} (14. Be3 $16) 14... bxa4 {[%emt 0:03:05]} 15. Rxa4 {[%emt 0:00:31]} a5 {[%emt 0:01:09]} 16. Bd2 {[%emt 0:00:22]} Bc6 {[%emt 0:05:18] [#]} 17. Ra2 $16 {[%emt 0:02:55]} Qb6 {[%emt 0:08:46]} 18. Rda1 {[%emt 0:08:53]} Bb4 {[%emt 0:03:35]} 19. Bf4 {[%emt 0:01:04]} Rb8 {[%emt 0:07:02]} 20. Qe3 {[%emt 0:01:09]} Bb5 {[%emt 0:01:36]} 21. Bc2 {[%emt 0:00:42]} Rc8 {[%emt 0:03:25]} 22. Rc1 {[%emt 0:01:18]} Nb8 {[%emt 0:02:49]} 23. Raa1 {[%emt 0:04:04]} Nc6 {[%emt 0:03:24]} 24. h4 {[%emt 0:01:17]} Qa6 {[%emt 0:02:44]} 25. h5 {[%emt 0:04:53]} Be7 {[%emt 0:04:55]} 26. Bb3 {[%emt 0:02:08]} Bd3 {[%emt 0:06:46]} 27. Ba4 {[%emt 0:04:14]} Bb5 {[%emt 0:01:00]} 28. Bb3 {[%emt 0:01:54]} Bd3 {[%emt 0:00:18]} 29. Ne1 {[%emt 0:01:11]} Bh7 {[%emt 0:01:22]} 30. Qg3 {[%emt 0:02:15]} g5 {[%emt 0:02:29]} 31. hxg6 {[%emt 0:06:04]} Bxg6 {[%emt 0:00:16]} 32. Ba4 {[%emt 0:00:19]} Kf8 {[%emt 0:04:07]} 33. Be3 {[%emt 0:11:17]} Kg7 {[%emt 0:03:06]} 34. Bc2 {[%emt 0:00:55]} Nb4 {[%emt 0:01:36]} 35. Bxg6 {[%emt 0:02:11]} fxg6 {[%emt 0:00:14]} 36. Qh3 {[%emt 0:00:13]} h5 {[%emt 0:04:42]} 37. Rc3 {[%emt 0:03:20]} Rhf8 {[%emt 0:02:49]} 38. Rca3 {[%emt 0:04:38]} Nc6 {[%emt 0:01:41]} 39. Ra4 {[%emt 0:01:14]} Kf7 {[%emt 0:02:16]} 40. Nf3 {[%emt 0:02:04]} Qd3 {[%emt 0:04:54]} 41. Bh6 {[%emt 0:31:59]} Qf5 {[%emt 0:33:01]} 42. Qxf5+ {[%emt 0:00:36]} gxf5 {[%emt 0:00:18]} 43. Bxf8 {[%emt 0:00:04]} Kxf8 {[%emt 0:00:38]} 44. Rc1 {[%emt 0:00:24]} Ke8 {[%emt 0:00:46]} 45. Rxa5 {[%emt 0:00:14]} 1-0

[Event "LEM Sachsen-Anhalt Open 2024"]
[Site "Merseburg"]
[Date "2024.02.10"]
[Round "5.4"]
[White "Urban, Tom"]
[Black "Korte, Markus"]
[Result "1-0"]
[ECO "C48"]
[WhiteElo "1696"]
[BlackElo "1879"]
[Annotator "NA RC"]
[PlyCount "99"]
[EventDate "2024.02.01"]
[EventType "swiss"]
[EventCountry "GER"]
[SourceTitle "playchess.com"]
[Source "ChessBase"]
[SourceQuality "1"]
[TimeControl "40/5400+30:1800+30"]

1. e4 {[%emt 0:00:02]} e5 {[%emt 0:00:29]} 2. Nf3 {[%emt 0:00:11]} Nf6 {[%emt 0:00:08]} 3. Nc3 {[%emt 0:00:11]} Nc6 {[%emt 0:00:06]} 4. Bb5 {[%emt 0:00:14]} Nd4 {[%emt 0:00:08]} 5. Ba4 {[%emt 0:01:37]} Bc5 {[%emt 0:06:48]} 6. d3 {[%emt 0:02:47]} Qe7 {[%emt 0:01:07]} 7. Bg5 {[%emt 0:08:19]} c6 {[%emt 0:01:55]} 8. O-O {[%emt 0:06:00]} Ne6 {[%emt 0:01:20]} ({Black should try} 8... h6 $15 9. Nxd4 Bxd4 (9... hxg5 10. Nf5 $15)) 9. Bh4 $16 {[%emt 0:08:30]} b5 {[%emt 0:14:10]} 10. Bb3 {[%emt 0:01:32]} Nf4 {[%emt 0:00:48]} 11. d4 {[%emt 0:06:38]} exd4 {[%emt 0:02:05]} 12. Nxd4 {[%emt 0:02:27]} O-O {[%emt 0:15:25]} 13. Re1 {[%emt 0:06:05]} Qe5 {[%emt 0:11:19]} 14. Nf3 {[%emt 0:04:11]} Qh5 {[%emt 0:02:32]} 15. Qd2 {[%emt 0:12:15]} Qg4 {[%emt 0:06:36]} 16. Bg3 {[%emt 0:01:35]} N6h5 {[%emt 0:00:51]} 17. Ne5 {[%emt 0:09:35]} Qg5 {[%emt 0:03:21]} 18. Nf3 {[%emt 0:01:39]} Qh6 {[%emt 0:01:36]} 19. Bh4 {[%emt 0:02:29]} Qg6 {[%emt 0:05:10]} 20. Bg5 {[%emt 0:04:38]} Ne6 {[%emt 0:05:15]} 21. Be3 {[%emt 0:02:28]} Bxe3 {[%emt 0:09:01]} 22. Qxe3 {[%emt 0:00:08]} Nef4 {[%emt 0:01:21]} 23. g3 {[%emt 0:01:39]} d6 {[%emt 0:03:04]} 24. Ne2 {[%emt 0:02:16]} Nh3+ {[%emt 0:00:58]} 25. Kh1 {[%emt 0:00:10]} Qf6 {[%emt 0:01:26]} 26. Neg1 {[%emt 0:01:00]} Re8 {[%emt 0:01:49]} 27. c3 {[%emt 0:01:37]} Bg4 {[%emt 0:00:38]} 28. Bd1 {[%emt 0:01:06]} Nxg1 {[%emt 0:02:06]} 29. Nxg1 {[%emt 0:00:38]} Bxd1 {[%emt 0:00:46]} 30. Raxd1 {[%emt 0:00:09]} Re7 {[%emt 0:00:48]} 31. Qd4 {[%emt 0:01:22]} g6 {[%emt 0:01:36]} 32. Qxd6 {[%emt 0:00:17]} Re6 {[%emt 0:00:32]} 33. Qd4 {[%emt 0:00:46]} Qe7 {[%emt 0:00:23]} 34. f3 {[%emt 0:01:17]} Re8 {[%emt 0:00:29]} 35. Rf1 {[%emt 0:00:46]} Qg5 {[%emt 0:00:54]} 36. Kg2 {[%emt 0:03:15]} R6e7 {[%emt 0:00:34]} 37. Nh3 {[%emt 0:01:09]} Qh6 {[%emt 0:00:00]} 38. Nf2 {[%emt 0:01:27]} f5 {[%emt 0:01:02]} 39. Qc5 {[%emt 0:04:14]} Qg5 {[%emt 0:00:51]} 40. Nh3 {[%emt 0:00:59]} Qf6 {[%emt 0:00:18]} 41. Rd6 {[%emt 0:31:40]} Re6 {[%emt 0:30:36]} 42. Rxe6 {[%emt 0:00:00]} Qxe6 {[%emt 0:00:00]} 43. exf5 {[%emt 0:00:00]} Qxa2 {[%emt 0:00:00]} 44. fxg6 {[%emt 0:00:00]} hxg6 {[%emt 0:00:00]} 45. Qxc6 {[%emt 0:00:00]} Re2+ {[%emt 0:00:00]} 46. Rf2 {[%emt 0:00:00]} Rxf2+ {[%emt 0:00:00]} 47. Nxf2 {[%emt 0:00:00]} Qxb2 {[%emt 0:00:00]} 48. Qxg6+ {[%emt 0:00:00]} Ng7 {[%emt 0:00:00]} 49. Qc6 {[%emt 0:00:00]} Kh7 {[%emt 0:00:00]} 50. Qe4+ {[%emt 0:00:00]} 1-0

[Event "LEM Sachsen-Anhalt Open 2024"]
[Site "Merseburg"]
[Date "2024.02.10"]
[Round "5.7"]
[White "Winnig, Bernd"]
[Black "Weigelt, Joachim"]
[Result "1-0"]
[ECO "E94"]
[WhiteElo "1883"]
[BlackElo "1727"]
[Annotator "NA RC"]
[PlyCount "55"]
[EventDate "2024.02.01"]
[EventType "swiss"]
[EventCountry "GER"]
[SourceTitle "playchess.com"]
[Source "ChessBase"]
[SourceQuality "1"]
[TimeControl "40/5400+30:1800+30"]

1. d4 {[%emt 0:00:04]} Nf6 {[%emt 0:00:00]} 2. c4 {[%emt 0:00:07]} g6 {[%emt 0:00:03]} 3. Nc3 {[%emt 0:00:09]} Bg7 {[%emt 0:00:19]} 4. e4 {[%emt 0:00:11]} d6 {[%emt 0:00:11]} 5. Be2 {[%emt 0:00:16]} O-O {[%emt 0:00:17]} 6. Nf3 {[%emt 0:00:08]} Nbd7 {[%emt 0:00:33]} 7. O-O {[%emt 0:00:49]} e5 {[%emt 0:00:12]} 8. d5 {[%emt 0:01:27]} Nc5 {[%emt 0:00:22]} 9. Qc2 {[%emt 0:00:20]} Ne8 {[%emt 0:03:05]} 10. Bg5 {[%emt 0:11:59]} f6 {[%emt 0:03:34]} 11. Bh4 {[%emt 0:01:40]} Bg4 {[%emt 0:01:08]} ({Black should try} 11... h5 $14) 12. Nd2 {[%emt 0:06:25]} (12. b4 $16 Nd7 13. Nd2 Bxe2 14. Nxe2) 12... Qc8 {[%emt 0:02:31] [#]} (12... Bxe2 $11 13. Nxe2 a5) 13. f3 $1 {[%emt 0:03:08]} Bd7 {[%emt 0:01:23]} 14. b4 {[%emt 0:00:59]} Na6 $16 {[%emt 0:00:56]} 15. Rab1 {[%emt 0:02:00]} Bh6 {[%emt 0:00:29]} 16. Bf2 {[%emt 0:00:18]} f5 {[%emt 0:01:12]} 17. c5 {[%emt 0:02:14]} Ng7 {[%emt 0:02:44]} 18. Nc4 {[%emt 0:03:34]} b5 {[%emt 0:03:21]} 19. Na5 {[%emt 0:07:56]} dxc5 {[%emt 0:05:03]} 20. bxc5 {[%emt 0:08:56]} b4 {[%emt 0:04:05]} 21. c6 {[%emt 0:00:40]} Bxc6 {[%emt 0:01:32]} 22. Nxc6 {[%emt 0:00:16]} Bg5 {[%emt 0:03:22]} 23. Nxb4 {[%emt 0:01:38]} Nxb4 {[%emt 0:00:40]} 24. Rxb4 {[%emt 0:00:05]} f4 {[%emt 0:01:17]} 25. Rc1 {[%emt 0:04:10]} c5 {[%emt 0:01:19]} 26. dxc6 {[%emt 0:00:48]} Qxc6 {[%emt 0:00:23]} 27. Nd5 {[%emt 0:01:32]} Qxc2 {[%emt 0:01:08]} 28. Rxc2 {[%emt 0:00:02]} 1-0

[Event "LEM Sachsen-Anhalt Open 2024"]
[Site "Merseburg"]
[Date "2024.02.10"]
[Round "5.8"]
[White "Treiber, Marco"]
[Black "Patzschke, Carlo"]
[Result "0-1"]
[ECO "A62"]
[WhiteElo "1815"]
[BlackElo "1636"]
[Annotator "NA RC"]
[PlyCount "62"]
[EventDate "2024.02.01"]
[EventType "swiss"]
[EventCountry "GER"]
[SourceTitle "playchess.com"]
[Source "ChessBase"]
[SourceQuality "1"]
[TimeControl "40/5400+30:1800+30"]

1. d4 {[%emt 0:00:05]} Nf6 {[%emt 0:00:07]} 2. Nf3 {[%emt 0:00:15]} c5 {[%emt 0:00:14]} 3. d5 {[%emt 0:00:54]} e6 {[%emt 0:00:30]} 4. c4 {[%emt 0:04:06]} exd5 {[%emt 0:00:08]} 5. cxd5 {[%emt 0:00:08]} d6 {[%emt 0:00:06]} 6. Nc3 {[%emt 0:00:47]} g6 {[%emt 0:00:12]} 7. g3 {[%emt 0:00:39]} Bg7 {[%emt 0:00:22]} 8. Bg2 {[%emt 0:00:07]} O-O {[%emt 0:00:59]} 9. O-O {[%emt 0:00:13]} Na6 {[%emt 0:04:45]} 10. Nd2 {[%emt 0:03:28]} Rb8 {[%emt 0:01:48]} (10... Nc7 $11 {was preferrable.}) 11. a4 {[%emt 0:03:12]} Nc7 {[%emt 0:04:31]} 12. e4 {[%emt 0:02:23]} (12. Nc4 $14 {might be stronger.}) 12... a6 $14 {[%emt 0:03:06]} 13. a5 {[%emt 0:01:48]} Nb5 {[%emt 0:01:21]} 14. Nc4 {[%emt 0:01:36]} Ng4 {[%emt 0:05:43]} 15. Nxb5 {[%emt 0:03:12]} axb5 {[%emt 0:00:12]} 16. Nb6 {[%emt 0:00:15]} f5 {[%emt 0:15:51]} 17. h3 {[%emt 0:05:38]} Nf6 {[%emt 0:05:06]} 18. f3 {[%emt 0:05:05]} Nh5 {[%emt 0:09:08]} 19. Kh2 {[%emt 0:02:16]} fxe4 {[%emt 0:10:44]} 20. f4 {[%emt 0:00:41]} Bd4 {[%emt 0:05:31]} 21. Bxe4 {[%emt 0:02:20]} Re8 {[%emt 0:02:05]} 22. Bf3 {[%emt 0:08:46]} Ng7 {[%emt 0:03:38]} 23. Ra2 {[%emt 0:09:21]} Bf5 {[%emt 0:04:09]} 24. b4 {[%emt 0:03:17]} Qf6 {[%emt 0:04:04]} 25. g4 {[%emt 0:02:15]} Bb1 {[%emt 0:00:32]} 26. Rg2 {[%emt 0:03:55]} Re7 {[%emt 0:01:23]} 27. Re2 {[%emt 0:05:36]} Rxe2+ {[%emt 0:01:40]} 28. Qxe2 {[%emt 0:03:54]} Re8 {[%emt 0:00:21]} 29. Qxb5 {[%emt 0:01:03]} Be3 {[%emt 0:02:58]} 30. Bxe3 {[%emt 0:14:02]} Rxe3 {[%emt 0:00:15]} 31. Be2 {[%emt 0:02:38]} Qb2 {[%emt 0:01:50]} 0-1

[Event "LEM Sachsen-Anhalt Open 2024"]
[Site "Merseburg"]
[Date "2024.02.10"]
[Round "5.9"]
[White "Kern, Rene"]
[Black "Kroh, Christian"]
[Result "1-0"]
[ECO "D02"]
[WhiteElo "1792"]
[BlackElo "1680"]
[Annotator "NA RC"]
[PlyCount "67"]
[EventDate "2024.02.01"]
[EventType "swiss"]
[EventCountry "GER"]
[SourceTitle "playchess.com"]
[Source "ChessBase"]
[SourceQuality "1"]
[TimeControl "40/5400+30:1800+30"]

1. d4 {[%emt 0:00:02]} Nf6 {[%emt 0:00:42]} 2. Nf3 {[%emt 0:00:05]} e6 {[%emt 0:00:09]} 3. Bf4 {[%emt 0:00:22]} b6 {[%emt 0:00:21]} 4. e3 {[%emt 0:00:25]} Bb7 {[%emt 0:00:15]} 5. Nbd2 {[%emt 0:00:59]} d5 {[%emt 0:01:13]} 6. Bd3 {[%emt 0:00:23]} Be7 {[%emt 0:01:40]} 7. h3 {[%emt 0:00:10]} c5 {[%emt 0:01:07]} 8. c3 {[%emt 0:00:06]} O-O {[%emt 0:00:36]} 9. O-O {[%emt 0:00:49]} Nbd7 {[%emt 0:00:35]} 10. a4 {[%emt 0:03:23]} Ne4 {[%emt 0:02:21]} 11. a5 {[%emt 0:02:27]} Rc8 {[%emt 0:16:55]} 12. axb6 {[%emt 0:14:36]} Qxb6 {[%emt 0:04:20]} 13. Qb1 {[%emt 0:00:21]} f5 {[%emt 0:02:49]} 14. Qa2 {[%emt 0:12:43]} Ra8 {[%emt 0:09:08]} 15. Ba6 {[%emt 0:04:03]} Bxa6 {[%emt 0:11:13]} 16. Qxa6 {[%emt 0:00:06]} Kf7 {[%emt 0:12:55]} 17. Ra2 {[%emt 0:07:12]} h6 {[%emt 0:03:56]} 18. Rfa1 {[%emt 0:00:33]} Bd8 {[%emt 0:01:03]} 19. Nxe4 {[%emt 0:04:32]} fxe4 {[%emt 0:01:29]} 20. Ne5+ {[%emt 0:00:18]} Nxe5 {[%emt 0:00:12]} 21. Bxe5 {[%emt 0:00:07]} Re8 {[%emt 0:11:20]} 22. Bd6 {[%emt 0:00:19]} cxd4 {[%emt 0:00:52]} 23. exd4 {[%emt 0:00:39]} Qxa6 {[%emt 0:00:31]} 24. Rxa6 {[%emt 0:00:23]} Bb6 {[%emt 0:01:12]} 25. Kf1 {[%emt 0:02:40]} Red8 {[%emt 0:03:37]} 26. Be5 {[%emt 0:00:51]} Rd7 {[%emt 0:00:46]} 27. Rxb6 {[%emt 0:00:25]} axb6 {[%emt 0:00:25]} 28. Rxa8 {[%emt 0:00:11]} Rb7 {[%emt 0:01:05]} 29. Rb8 {[%emt 0:00:06]} Rxb8 {[%emt 0:00:05]} 30. Bxb8 {[%emt 0:00:06]} Ke7 {[%emt 0:00:03]} 31. h4 {[%emt 0:02:05]} Kd7 {[%emt 0:00:17]} 32. h5 {[%emt 0:00:44]} Kc6 {[%emt 0:00:10]} 33. Be5 {[%emt 0:00:47]} Kb5 {[%emt 0:00:10]} 34. b3 {[%emt 0:00:17]} 1-0

[Event "LEM Sachsen-Anhalt Open 2024"]
[Site "Merseburg"]
[Date "2024.02.10"]
[Round "5.10"]
[White "Lehmann, Taylor"]
[Black "Sikorra, Philipp"]
[Result "1-0"]
[ECO "A16"]
[WhiteElo "1745"]
[BlackElo "1667"]
[Annotator "NA RC"]
[PlyCount "111"]
[EventDate "2024.02.01"]
[EventType "swiss"]
[EventCountry "GER"]
[SourceTitle "playchess.com"]
[Source "ChessBase"]
[SourceQuality "1"]
[TimeControl "40/5400+30:1800+30"]

1. c4 {[%emt 0:00:03]} g6 {[%emt 0:01:44]} 2. g3 {[%emt 0:00:06]} Bg7 {[%emt 0:00:26]} 3. Bg2 {[%emt 0:00:06]} Nf6 {[%emt 0:00:20]} 4. e3 {[%emt 0:00:07]} d5 {[%emt 0:00:38]} 5. cxd5 {[%emt 0:00:12]} Nxd5 {[%emt 0:00:24]} 6. Ne2 {[%emt 0:02:00]} O-O {[%emt 0:00:39]} 7. O-O {[%emt 0:00:17]} c6 {[%emt 0:00:57]} 8. Nbc3 {[%emt 0:00:13]} e5 {[%emt 0:04:01]} 9. Qb3 {[%emt 0:01:40]} Nxc3 {[%emt 0:01:15]} 10. Nxc3 {[%emt 0:00:12]} Qc7 {[%emt 0:00:48]} 11. a4 {[%emt 0:02:10]} Be6 {[%emt 0:00:25]} 12. Qc2 {[%emt 0:00:07]} a6 {[%emt 0:01:06]} 13. b4 {[%emt 0:01:09]} Rc8 {[%emt 0:02:29]} 14. a5 {[%emt 0:05:48]} Nd7 {[%emt 0:00:22]} 15. e4 {[%emt 0:04:38]} Rd8 {[%emt 0:02:27]} 16. d3 {[%emt 0:02:35]} Rac8 {[%emt 0:00:36]} 17. Be3 {[%emt 0:00:57]} Qd6 {[%emt 0:03:01]} 18. Rab1 {[%emt 0:01:03]} f6 {[%emt 0:01:22]} 19. Rfd1 {[%emt 0:00:31]} Qe7 {[%emt 0:00:56]} 20. Na4 {[%emt 0:00:48]} Qf7 {[%emt 0:01:13]} 21. Nb6 {[%emt 0:11:05]} Nxb6 {[%emt 0:04:47]} 22. Bxb6 {[%emt 0:00:07]} Re8 {[%emt 0:00:21]} 23. Rf1 {[%emt 0:03:16]} Bf8 {[%emt 0:00:58]} 24. h4 {[%emt 0:03:30]} h5 {[%emt 0:00:56]} 25. Qe2 {[%emt 0:02:31]} Bd6 {[%emt 0:01:03]} 26. Kh2 {[%emt 0:02:20]} Qe7 {[%emt 0:00:53]} 27. Qd2 {[%emt 0:00:34]} Kg7 {[%emt 0:01:15]} 28. Bh3 {[%emt 0:00:25]} Qd7 {[%emt 0:03:11]} 29. Bxe6 {[%emt 0:00:41]} Rxe6 {[%emt 0:00:04]} 30. Qe3 {[%emt 0:02:11]} Qe7 {[%emt 0:02:17]} 31. Bc5 {[%emt 0:00:27]} Rd8 {[%emt 0:00:19]} 32. Rb3 {[%emt 0:00:15]} Qd7 {[%emt 0:00:38]} 33. Rfb1 {[%emt 0:00:52]} Bc7 {[%emt 0:01:40]} 34. Kg2 {[%emt 0:00:29]} Qf7 {[%emt 0:01:59]} 35. f4 {[%emt 0:02:28]} f5 {[%emt 0:01:18]} 36. fxe5 {[%emt 0:05:14]} Bxe5 {[%emt 0:04:33]} 37. Rf1 {[%emt 0:14:31]} Rf6 {[%emt 0:07:21]} 38. Rbb1 {[%emt 0:14:11]} fxe4 {[%emt 0:05:44]} 39. Rxf6 {[%emt 0:06:30]} Bxf6 {[%emt 0:00:22]} 40. Re1 {[%emt 0:10:47]} Rxd3 {[%emt 0:00:35]} 41. Qxe4 {[%emt 0:31:45]} Qd5 {[%emt 0:30:13]} 42. Qxd5 {[%emt 0:00:26]} Rxd5 {[%emt 0:00:03]} 43. Re8 {[%emt 0:00:07]} Rd7 {[%emt 0:06:14]} 44. Kf3 {[%emt 0:02:18]} Kf7 {[%emt 0:00:53]} 45. Rf8+ {[%emt 0:00:00]} Ke6 {[%emt 0:00:00]} 46. Re8+ {[%emt 0:00:00]} Be7 {[%emt 0:00:00]} 47. Ke4 {[%emt 0:00:00]} Kf7 {[%emt 0:00:00]} 48. Rxe7+ {[%emt 0:00:00]} Rxe7+ {[%emt 0:00:00]} 49. Bxe7 {[%emt 0:00:00]} Kxe7 {[%emt 0:00:00]} 50. Ke5 {[%emt 0:00:00]} Kd7 {[%emt 0:00:00]} 51. Kf6 {[%emt 0:00:00]} b5 {[%emt 0:00:00]} 52. axb6 {[%emt 0:00:00]} Kd6 {[%emt 0:00:00]} 53. Kxg6 {[%emt 0:00:00]} a5 {[%emt 0:00:00]} 54. bxa5 {[%emt 0:00:00]} c5 {[%emt 0:00:00]} 55. Kf5 {[%emt 0:00:00]} Kd5 {[%emt 0:00:00]} 56. b7 {[%emt 0:00:00]} 1-0